Cogmind - Beta 16 --- EXPLORER MODE // 2025.12.10 @ 15:46:13 Player: K.K.Y. Result: Destroyed by 32-NQI(R) with Subdweller Beam Cannon Performance ------------- Evolutions (0) 0 Regions Visited (2) 400 Robots Destroyed (19) 95 Value Destroyed (395) 395 Prototype IDs (0) 0 Alien Tech Used (0) 0 Bonus (0) 0 TOTAL SCORE: 890 Bonus ------- None Cogmind --------- Core Integrity 0/250 Matter 300/300 Energy 97/125 System Corruption 0% Temperature Cool (9) Movement Flying (120) Ox1 Location -10/Subcaves Parts ------- > --- POWER (1) -------- Light Ion Engine > --- PROPULSION (3) --- Flight Unit > --- UTILITY (2) ------ Improved Heat Sink Improved Terrain Scanner > --- WEAPON (2) ------- Spread Laser > --- INVENTORY (5) ---- Huge Storage Unit Heavy EM Pulse Gun Shotgun Mining Laser Hammer Peak State ------------ > --- POWER ------------ Light Ion Engine > --- PROPULSION ------- Flight Unit Flight Unit > --- UTILITY ---------- Improved Heat Sink Improved Terrain Scanner > --- WEAPON ----------- Small Laser Spread Laser > --- INVENTORY -------- Huge Storage Unit Heavy EM Pulse Gun Shotgun Mining Laser Hammer [Rating: 12] Favorites ----------- Power Light Ion Engine Engine Light Ion Engine Propulsion Flight Unit Flight Unit Flight Unit Utility Improved Terrain Scanner Device Improved Terrain Scanner Processor Targeting Computer Weapon Spread Laser Energy Gun Spread Laser Ballistic Gun Light Assault Rifle Build | -11 -10 -10 ------- Run | Yrd Mat Sub Slots Evolved 1 | . 1 . Power . | . . . Propulsion 1 | . 1 . Utility . | . . . Weapon . | . . . Parts Attached 14 | 4 10 . Power 2 | . 2 . Engine 2 | . 2 . Core . | . . . Reactor . | . . . Propulsion 3 | . 3 . Treads . | . . . Leg . | . . . Wheel . | . . . Hover . | . . . Flight 3 | . 3 . Utility 5 | 2 3 . Device 3 | . 3 . Storage . | . . . Processor 2 | 2 . . Hackware . | . . . Protection . | . . . Artifact . | . . . Weapon 4 | 2 2 . Energy Gun 2 | . 2 . Energy Cannon . | . . . Ballistic Gun 2 | 2 . . Ballistic Cannon . | . . . Launcher . | . . . Special Weapon . | . . . Impact Weapon . | . . . Slashing Weapon . | . . . Piercing Weapon . | . . . Special Melee Weapon . | . . . Unidentified Prototypes . | . . . Parts Lost 2 | . 1 1 Power . | . . . Propulsion 2 | . 1 1 Utility . | . . . Weapon . | . . . Highest Loss Streak 1 | . 1 1 To Critical Strikes . | . . . Average Backups 4 | 1 4 5 Power . | . . . Propulsion . | . . . Utility . | . . 1 Weapon 3 | . 3 4 Tool/Special . | . . . Unused Backups 6 | . 1 5 Power . | . . . Propulsion . | . . . Utility 1 | . . 1 Weapon 5 | . 1 4 Tool/Special . | . . . Average Slot Usage (%) 64 | . 64 70 Engine 10 | . 10 12 Flight 14 | . 14 20 Device 15 | . 15 25 Processor 2 | . 2 . Energy Gun 21 | . 21 12 Peak Build Rating 12 | 4 12 11 Average Rating 8 | 2 8 10 On Entrance 5 | . 4 11 Avg Prop Armor Cover (%) . | . . . Naked Turns . | . . . Heaviest Build 9 | 2 9 8 Greatest Support 12 | 3 12 8 Greatest Overweight (x) 2 | . 2 . Average Overweight (x) . | . . . Largest Inventory Capacity 5 | 5 5 5 Average Capacity 5 | 5 5 5 Most Carried 5 | 3 5 5 Average Carried 4 | 1 4 5 Final Capacity 5 | 5 5 5 Final Carried 5 | 3 5 5 Class Distribution -------------------- 100% | Hacker-Mutant Dominant Class ---------------- Hacker-Mutant | -10/Materials Hacker-Mutant | -10/Subcaves Resources | -11 -10 -10 ----------- Run | Yrd Mat Sub Matter Collected 437 | 252 185 . Remotely . | . . . Salvage Created 502 | 115 387 . Parts 27 | 9 18 . Haulers Intercepted 2 | . 2 . Recyclers Shooed . | . . . Parts Field Recycled . | . . . Retrieved Matter . | . . . Parts Self-Destructed . | . . . Prevented . | . . . Parts Restored . | . . . Kills | -11 -10 -10 ------- Run | Yrd Mat Sub Combat Hostiles Destroyed 11 | . 11 . Guns 11 | . 11 . Classes Destroyed 7 | 2 5 . Tunneler 2 | 2 . . Hauler 2 | . 2 . Recycler 1 | 1 . . Watcher 3 | . 3 . Swarmer 4 | . 4 . Grunt 6 | . 6 . Subdweller 1 | . 1 . Best Kill Streak 3 | 3 3 . Combat Bots Only 2 | . 2 . Max Kills in Single Turn 1 | 1 1 . Gunslinging . | . . . Exploded . | . . . Melee . | . . . Uniques/NPCs Destroyed . | . . . Combat | -11 -10 -10 -------- Run | Yrd Mat Sub Hostile Shots Fired 53 | . 40 13 Missed 14 | . 11 3 Hits 39 | . 29 10 Projectile 39 | . 29 10 Critical Strikes 2 | . 1 1 Damage Taken 464 | . 290 174 Core 260 | . 111 149 Absorbed by Shields . | . . . Ignored by Resistances 282 | . 181 101 Regen/Repaired (Parts) 110 | . 110 . Core Remaining (%) 100 | 100 . . Volleys Fired 47 | 6 33 8 Largest 2 | 2 2 1 Hottest 105 | 40 105 65 Shots Fired 78 | 12 58 8 Gun 78 | 12 58 8 Cannon . | . . . Launcher . | . . . Special . | . . . Kinetic 12 | 12 . . Thermal 66 | . 58 8 Explosive . | . . . Electromagnetic . | . . . Robot Hit Streak 29 | 11 25 29 Robot Miss Streak 2 | . 2 1 Penetration Max . | . . . Secondary Targets 1 | . 1 . Max Gunslinging Chain 1 | . 1 . Shots Hit Robots 71 | 11 52 8 Core Hits 71 | 6 59 6 Critical Kills . | . . . Critical Parts Destroyed 1 | 1 . . Critical Strikes 1 | 1 . . Destroy 1 | 1 . . Melee Attacks . | . . . Impact . | . . . Slashing . | . . . Piercing . | . . . Sneak Attacks . | . . . Combat Hostiles . | . . . Follow-up Attacks . | . . . Damage Inflicted 968 | 90 766 112 Guns 968 | 90 766 112 Cannons . | . . . Explosions . | . . . Melee . | . . . Ramming . | . . . Kinetic 90 | 90 . . Thermal 878 | . 766 112 Explosive . | . . . Electromagnetic . | . . . Impact . | . . . Slashing . | . . . Piercing . | . . . Highest Corruption . | . . . Average Corruption . | . . . Corruption Purged . | . . . Corruption Blocked . | . . . Overload Shots . | . . . Overflow Damage . | . . . Projectiles . | . . . Explosions . | . . . Melee . | . . . Knockbacks . | . . . Impact . | . . . Kinetic . | . . . Secondary . | . . . Self-Inflicted Damage . | . . . Shots . | . . . Rammed . | . . . Targets Rammed . | . . . Kicked . | . . . Crushed . | . . . Highest Temperature 464 | . 464 . Average Temperature 154 | . 154 . Received Heat Transfer 273 | . 183 90 Effects 7 | . 7 . Shutdowns 2 | . 2 . Interference 3 | . 3 . Matter Decay 1 | . 1 . Short Circuit 1 | . 1 . Siege Activations . | . . . Martial Activations . | . . . Shielding Activations . | . . . Robots Disrupted . | . . . Combat Hostiles . | . . . Robots Corrupted . | . . . Combat Hostiles . | . . . Parts Fried . | . . . Impact Corruptions . | . . . Robots Melted . | . . . Combat Hostiles . | . . . Parts Melted 1 | . 1 . Heat Transferred 1405 | . 1260 145 Parts Sabotaged . | . . . Parts Stolen . | . . . Parts Stripped . | . . . Power Chain Reactions . | . . . Alert | -11 -10 -10 ------- Run | Yrd Mat Sub Maximum Alert Level . | . . . Low Security (%) 100 | 100 100 . Level 1 . | . . . Level 2 . | . . . Level 3 . | . . . Level 4 . | . . . Level 5 . | . . . High Security . | . . . Max Security . | . . . Peak Influence 50 | 10 50 . Initial 2 | . 2 . Average 10 | 2 10 . Influence Increases 321 | 15 306 . Destroy 0b10 Robot/C 200 | . 200 . Destroy 0b10 Robot/NC 40 | 15 25 . Destroy Leader 60 | . 60 . Successful Hack 6 | . 6 . Partial Spotted 15 | . 15 . Influence Decreases 321 | 10 311 . Entered New Map 3 | . 3 . Time Decay 318 | 10 308 . Squads Dispatched . | . . . Investigation . | . . . Extermination . | . . . Reinforcement . | . . . Assault . | . . . Garrison . | . . . Intercept . | . . . Searches Triggered . | . . . Construction Impeded . | . . . Haulers Reinforced . | . . . Active Scanning Responses . | . . . Cargo Convoy Interrupts . | . . . Stealth | -11 -10 -10 --------- Run | Yrd Mat Sub Distress Signals 2 | . 2 . Communications Jammed . | . . . Distress Signals . | . . . Times Spotted 19 | . 17 2 Peak Tracking Total 3 | . 3 2 Tactical Retreats . | . . . Traps | -11 -10 -10 ------- Run | Yrd Mat Sub Traps Triggered 3 | . 3 . Indirectly . | . . . Trap Hack Attempts . | . . . Triggered . | . . . Disarmed . | . . . Reprogrammed . | . . . Reused . | . . . Traps Extracted . | . . . Installed . | . . . Triggered . | . . . Machines | -11 -10 -10 ---------- Run | Yrd Mat Sub Machines Disabled . | . . . Max in Single Turn . | . . . Machines Repaired . | . . . Machines Dismantled . | . . . Machines Sabotaged . | . . . Overloaded Fab Kills . | . . . Hacking | -11 -10 -10 --------- Run | Yrd Mat Sub Machines Accessed 8 | . 8 . Terminals 5 | . 5 . Fabricators . | . . . Repair Stations 1 | . 1 . Recycling Units 2 | . 2 . Scanalyzers . | . . . Garrison Access . | . . . Total Hacks 24 | . 24 . Successful 18 | . 18 . Failed 6 | . 6 . Catastrophic . | . . . Database Lockouts . | . . . Manual 10 | . 10 . Terminals 11 | . 11 . Fabricators . | . . . Repair Stations 10 | . 10 . Recycling Units 3 | . 3 . Scanalyzers . | . . . Garrison Access . | . . . Terminal Hacks 1 | . 1 . Zone Layout 1 | . 1 . Fabricator Hacks . | . . . Repair Station Hacks 10 | . 10 . Scan Component 5 | . 5 . Repair 5 | . 5 . Recycling Unit Hacks 2 | . 2 . Retrieve Components 2 | . 2 . Scanalyzer . | . . . Garrison Access Hacks . | . . . Unauthorized Hacks 5 | . 5 . Terminals 5 | . 5 . Botnet 5 | . 5 . Fabricators . | . . . Repair Stations . | . . . Recycling Units . | . . . Scanalyzers . | . . . Garrison Access . | . . . Data Cores Recovered . | . . . Used . | . . . Hacking Detections 5 | . 5 . Full Trace Events 1 | . 1 . Feedback Events . | . . . Feedback Blocked . | . . . Robot Schematics Acquired . | . . . Robots Built . | . . . Authchips . | . . . Time . | . . . Total Robot Build Rating . | . . . Part Schematics Acquired . | . . . Parts Built . | . . . Authchips . | . . . Time . | . . . Total Part Build Rating . | . . . Part Studies Acquired . | . . . Parts Repaired 5 | . 5 . Time 148 | . 148 . Parts Recycled . | . . . Recycled Matter . | . . . Retrieved Matter . | . . . Retrieved Components 6 | . 6 . Parts Scanalyzed . | . . . Part Schematics Acquired . | . . . Parts Damaged . | . . . Bothacking | -11 -10 -10 ------------ Run | Yrd Mat Sub Used RIF Installer . | . . . Robots Hacked . | . . . Non-combat . | . . . Combat . | . . . Robot Hacks Applied . | . . . Relay Couplers Released . | . . . Fabnet Peak Effective % . | . . . Robots Rewired . | . . . Allies Hacked . | . . . Hacks Repelled . | . . . Allies | -11 -10 -10 -------- Run | Yrd Mat Sub Total Allies . | . . . Largest Group . | . . . Highest-Rated Group . | . . . Highest-Rated Ally . | . . . Total Orders . | . . . Ally Attacks . | . . . Total Damage . | . . . Kills . | . . . Allies Corrupted . | . . . Allies Melted . | . . . Intel | -11 -10 -10 ------- Run | Yrd Mat Sub Active Infowar (turns) 729 | . 702 27 Terrain 729 | . 702 27 Robot Analysis Total . | . . . Derelict Logs Recovered . | . . . Drone Launches . | . . . Drone Recoveries . | . . . Exploration | -11 -10 -10 ------------- Run | Yrd Mat Sub Turns Passed 966 | 59 880 27 Spaces Moved 886 | 57 797 32 Core 339 | 57 282 . Treads . | . . . Legs . | . . . Wheels . | . . . Hover . | . . . Flight 547 | . 515 32 Fastest Speed 34 | 50 34 37 Average Speed 63 | 50 65 37 Slowest Speed 150 | 50 150 37 Overloaded Moves . | . . . Propulsion Burnouts . | . . . Robots Hopped 1 | . 1 . Potential Cave-ins . | . . . Cave-ins Triggered . | . . . Exploration Rate (%) 35 | 3 100 2 Regions Visited 2 Branch Regions 1 Pre-discovered Areas . | . . . Known Exits Taken 2 | 1 1 . Unknown Exits Taken . | . . . Scrap Searched . | . . . Spaces Dug . | . . . Terrain Destroyed . | . . . Melee . | . . . Projectile . | . . . AOE . | . . . Terrain Rammed . | . . . Walls Destroyed . | . . . Machines Disabled . | . . . Actions | -11 -10 -10 --------- Run | Yrd Mat Sub Total 1213 | 77 1096 40 Wait 242 | 4 238 . Move 882 | 56 794 32 Hop 1 | . 1 . Pick Up 13 | 7 6 . Fast Attach 11 | . 11 . Attach 6 | 4 2 . Detach 2 | . 2 . Swap 2 | . 2 . Drop 7 | . 7 . Fire 47 | 6 33 8 Melee . | . . . Ram . | . . . Kick . | . . . Crush . | . . . Escape Stasis . | . . . Rewire . | . . . Trap . | . . . Miscellaneous . | . . . Route ------- -11/Scrapyard -10/Materials (discovered 5 exits: *Mat x3 / *Min / *Sub) -10/Subcaves History --------- Turn | Location | Event 4 | -11/Scrapyard | Identified exit to Materials 4 | -11/Scrapyard | Discovered exit to Materials (range 16) 60 | -11/Scrapyard | Entered Materials 60 | -10/Materials | Evolved 1 slot: Propulsion x1 200 | -10/Materials | Identified exit to Materials 200 | -10/Materials | Discovered exit to Materials (range 3) 301 | -10/Materials | Build established: Hacker-Mutant 550 | -10/Materials | Discovered exit to Materials (range 6) 560 | -10/Materials | Derelicts attacked the area 585 | -10/Materials | Repaired Spread Laser 613 | -10/Materials | Repaired Flight Unit 652 | -10/Materials | Repaired Imp. Terrain Scanner 683 | -10/Materials | Repaired Lgt. Ion Engine 710 | -10/Materials | Repaired Flight Unit 823 | -10/Materials | Discovered exit to Materials (range 5) 839 | -10/Materials | Identified exit to Mines 839 | -10/Materials | Discovered exit to Mines (range 14) 937 | -10/Materials | Identified exit to Subcaves 937 | -10/Materials | Discovered exit to Subcaves (range 8) 940 | -10/Materials | Entered Subcaves 958 | -10/Subcaves | Core integrity fell below 50% 962 | -10/Subcaves | Core integrity fell below 20% 967 | -10/Subcaves | Destroyed by 32-NQI(R) with Subdweller Beam Cannon Last Messages --------------- 00862_ Triggered EMP Trap. 00862_ A bubble of electromagnetic force engulfs the area. 00862_ Door malfunctions. 00862_ Terminal disabled. 00869_ Sub. Power Source melted. 00869_ U5-EGG(R) destroyed. 00882_ R-06 Scavenger collects Wheel. 00886_ Connecting with Terminal... >>Trojan(Botnet) Trojan loaded successfully. Testing... Terminal linked with 3 systems. Awaiting botnet instructions. 00907_ K-01 Serf collects debris. 00937_ EXIT=FOUND: SUBCAVES LOCATION=SUBCAVES AMBIENT_HEAT=-10 GOAL=ESCAPE 00955_ Flight Unit destroyed. Map ----- +----------------------------------------------------+ | ?????????????????????????????????????????????????? | | ?????????????????????????????????????????????????? | | ?????????????????????????????????????????????????? | | ?????????????????????????????????????????????????? | | ?????????????????????????????????????????????????? | | ?????????????????????????????????????????????????? | | ?????????????????????????????????????????????????? | | ?????????????????????????????????????????????????? | | ?????????????????????????????????????????????????? | | ?????????????????????????????????????????????????? | | ?????????????????????????????????????????????????? | | ?????????????????????????????????????????????????? | | ?????????????????????????????????????????????????? | | ?????????????????????###?#???????#???????????????? | | ???????????????####### #?????????????????????????? | | ?????????????### #?#????? ?????????????????? | | ?????????????# ##????"????????????????????? | | ?????????????# ##?#"" ?????????????????????? | | ?????????????# #??# "??????????????????????? | | ???????????### ###?# ##?????????????????????? | | ?????????????# # ###""##??????? ????????????? | | ?????????????## " "#? #????????????????? | | ??????????## ## """"#" #????????????????? | | ??????????# # """"" " ???????????????? | | ??????????# ### RR #???????????????????? | | ??????????# # ###?##@ ###???????????????????? | | ?????????# ## #????##;#?????????????????????? | | ?????????## ?# ??#???##?????????????????????? | | ??????????# ?# ?????????????????????????????? | | ?????????? ?## ????????????????????????????? | | ?????????# ???# # ????????????????????????????? | | ??????#?? ???## ## #???????????????????????????? | | ???????? ????? #?###?????????????? ???????????? | | ???????#??????? ??????????????????????????????? | | ?????????????? ?????????????#????????????????? | | ??????????????#### ??????????????????????????????? | | ??????????????????#??????????????????????????????? | | ?????????????????????????????????????????????????? | | ?????????????????????????????????????????????????? | | ?????????????????????????????????????????????????? | | ?????????????????????????????????????????????????? | | ?????????????????????????????????????????????????? | | ?????????????????????????????????????????????????? | | ?????????????????????????????????????????????????? | | ?????????????????????????????????????????????????? | | ?????????????????????????????????????????????????? | | ?????????????????????????????????????????????????? | | ?????????????????????????????????????????????????? | | ?????????????????????????????????????????????????? | | ?????????????????????????????????????????????????? | +----------------------------------------------------+ Best States ------------- Heat Dissipation 39 Energy Generation 10 Energy Capacity 125 Matter Stores 300 Matter Capacity 300 Sight Range 16 Terrain Scan Range 16 Terrain Scan Density 10 Additional Mass Support 6 Resistance: KI 35 Resistance: TH 35 Resistance: EX 35 Resistance: EM 35 Resistance: I 35 Resistance: S 35 Resistance: P 35 Evasion (%) 63 Targeting Accuracy 10 Offensive Hacking 20 Item Schematics ----------------- None Robot Schematics ------------------ None Fabricated ------------ Nothing Repaired ---------- Spread Laser | 10% | -10/Materials Flight Unit | 65% | -10/Materials Imp. Terrain Scanner | 68% | -10/Materials Lgt. Ion Engine | 57% | -10/Materials Flight Unit | 65% | -10/Materials Studied --------- None Alien Tech Used ----------------- None Achievements -------------- None Challenges ------------ None Game ------ Seed DeflectorBombCutter Manual? 0 Play Time 00:09:20 Cumulative 187.3 hours Start 2025.12.10 @ 15:27:56 End 2025.12.10 @ 15:46:13 Sessions 1 Manual Loads 0 Difficulty Explorer Special Mode None Game No. 266 Rogue 0 Adventurer 0 Explorer 266 Win Type - Total 0 Types 0/0/0/0/0/0/0/0/0/0 Lore% 70 Gallery% 67 Achievement% 53 Wizard Run 0 Options --------- Layout 1 ASCII 0 Keyboard 0 Movement Mouse Keybinds 0 Fullscreen 1 Font 24/Smallcaps Map View 50x35 Zoom Use 0% Tactical HUD 1 Map Filters NONE Filters NONE Steam 1 RUN: b3c24f22-1dbe-4735-b0d9-177a9d37fb41